fUSD/lending_fUSD_20250506
["ID","MTS","AMOUNT","RATE_DAILY","PERIOD"]
[360132717,1746562243944,-159.399757,0.00019986,2]
[360132719,1746562243953,-922.810266,0.00019986,2]
[360132721,1746562243962,-669.008386,0.00019986,2]
[360132723,1746562243972,-922.810266,0.00019986,2]
[360132725,1746562243981,-725.92080834,0.00019986,2]
[360132727,1746562243991,-669.008386,0.00019986,2]
[360132729,1746562244000,-200.0,0.00019986,2]
[360132731,1746562244009,-151.0,0.00019986,2]
[360132733,1746562244018,-151.0,0.00019986,2]
[360132735,1746562244028,-151.0,0.00019986,2]
[360132737,1746562244037,-151.0,0.00019986,2]
[360132739,1746562244046,-151.0,0.00019986,2]
[360132741,1746562244055,-151.0,0.00019986,2]
[360132743,1746562244064,-151.0,0.00019986,2]
[360132745,1746562244075,-151.0,0.00019986,2]
[360132747,1746562244088,-151.0,0.00019986,2]
[360132749,1746562244097,-151.0,0.00019986,2]
[360132751,1746562244106,-461.02183,0.00019986,2]
[360132753,1746562244115,-187.053762,0.00019986,2]
[360132755,1746562244126,-461.02183,0.00019986,2]
[360132757,1746562244135,-187.053762,0.00019986,2]
[360132759,1746562244144,-267.243813,0.00019986,2]
[360132761,1746562244155,-267.243813,0.00019986,2]
[360132763,1746562244164,-180.434936,0.00019986,2]
[360132764,1746562244173,-180.434936,0.00019986,2]
[360132765,1746562244182,-215.477618,0.00019986,2]
[360132766,1746562244191,-215.477618,0.00019986,2]
[360132767,1746562244201,-300.00629,0.00019986,2]
[360132768,1746562244210,-401.662662,0.00019986,2]
[360132769,1746562244219,-401.662662,0.00019986,2]
[360132770,1746562244228,-151.0,0.00019986,2]
[360132771,1746562244237,-325.775287,0.00019986,2]
[360132772,1746562244247,-193.479543,0.00019986,2]
[360132773,1746562244256,-151.0,0.00019986,2]
[360132774,1746562244265,-325.775287,0.00019986,2]
[360132775,1746562244275,-193.479543,0.00019986,2]
[360132776,1746562244284,-211.7082285,0.00019986,23]
[360132777,1746562244293,-151.0,0.00019986,2]
[360132779,1746562244302,-329.476466,0.00019986,2]
[360132781,1746562244311,-329.476466,0.00019986,2]
[360132783,1746562244321,-151.0,0.00019986,2]
[360132785,1746562244330,-151.0,0.00019986,2]
[360132787,1746562244339,-151.0,0.00019986,2]
[360132789,1746562244348,-151.0,0.00019986,2]
[360132791,1746562244357,-475.73424401,0.00019986,2]
[360132793,1746562244366,-361.95977377,0.00019986,2]
[360132795,1746562244376,-151.0,0.00019986,2]
[360132796,1746562244386,-2312.8945332,0.00019986,2]
[360132798,1746562244394,-2312.8945332,0.00019986,2]
[360132800,1746562244404,-253.326489,0.00019986,2]
[360132802,1746562244413,-253.326489,0.00019986,2]
[360132804,1746562244422,-151.0,0.00019986,2]
[360132806,1746562244432,-236.722951,0.00019986,2]
[360132808,1746562244441,-154.295653,0.00019986,2]
[360132810,1746562244451,-151.0,0.00019986,2]
[360132812,1746562244461,-151.0,0.00019986,2]
[360132814,1746562244470,-151.0,0.00019986,2]
[360132816,1746562244479,-151.0,0.00019986,2]
[360132818,1746562244489,-151.0,0.00019986,2]
[360132820,1746562244498,-151.0,0.00019986,2]
[360132822,1746562244508,-151.0,0.00019986,2]
[360132824,1746562244517,-253.924162,0.00019988,2]
[360132826,1746562244526,-253.924162,0.00019988,2]
[360132828,1746562244535,-151.0,0.00019988,2]
[360132830,1746562244544,-150.0,0.00019988,2]
[360132832,1746562244553,-500.0,0.0001999,2]
[360132834,1746562244562,-450.0,0.0001999,2]
[360132836,1746562244571,-450.0,0.0001999,2]
[360132838,1746562244580,-450.0,0.0001999,2]
[360132840,1746562244589,-450.0,0.0001999,2]
[360132841,1746562244598,-450.0,0.0001999,2]
[360132843,1746562244608,-4954.60911264,0.00019991,2]
[360132845,1746562244618,-151.0,0.00019992,2]
[360132847,1746562244627,-151.0,0.00019992,2]
[360132849,1746562244636,-151.0,0.00019992,2]
[360132851,1746562244645,-286.412312,0.00019992,2]
[360132853,1746562244654,-286.412312,0.00019992,2]
[360132855,1746562244663,-215.477618,0.00019993,2]
[360132857,1746562244673,-215.477618,0.00019993,2]
[360132859,1746562244682,-329.476466,0.00019993,2]
[360132861,1746562244691,-329.476466,0.00019993,2]
[360132863,1746562244701,-500.0,0.00019994,2]
[360132865,1746562244710,-152.186648,0.00019994,2]
[360132867,1746562244719,-151.0,0.00019994,2]
[360132869,1746562244729,-151.0,0.00019994,2]
[360132871,1746562244739,-151.0,0.00019994,2]
[360132873,1746562244748,-179.655252,0.00019994,2]
[360132880,1746562244801,-151.0,0.00019994,2]
[360132882,1746562244811,-228.542599,0.00019994,2]
[360132884,1746562244820,-228.542599,0.00019994,2]
[360132886,1746562244830,-499.8982,0.00019994,2]
[360132888,1746562244838,-499.8982,0.00019994,2]
[360132890,1746562244847,-151.0,0.00019994,2]
[360132892,1746562244856,-266.032829,0.00019994,2]
[360132894,1746562244865,-266.032829,0.00019994,2]
[360132896,1746562244875,-318.082385,0.00019994,2]
[360132898,1746562244883,-318.082385,0.00019994,2]
[360132900,1746562244893,-151.0,0.00019994,2]
[360132902,1746562244902,-450.0,0.00019994,2]
[360132904,1746562244911,-450.0,0.00019994,2]
[360132906,1746562244921,-505.16,0.00019994,2]
[360132908,1746562244930,-450.0,0.00019994,2]
[360132910,1746562244938,-413.85,0.00019994,2]
[360132911,1746562244948,-450.0,0.00019994,2]
[360132914,1746562244958,-450.0,0.00019994,2]
[360132915,1746562244967,-400.19,0.00019994,2]
[360132917,1746562244976,-450.0,0.00019994,2]
[360132919,1746562244985,-450.0,0.00019994,2]
[360132921,1746562244997,-151.0,0.00019995,2]
[360132923,1746562245006,-203.04182,0.00019995,2]
[360132925,1746562245016,-151.0,0.00019995,2]
[360132927,1746562245025,-151.0,0.00019995,2]
[360132929,1746562245035,-470.567646,0.00019995,2]
[360132931,1746562245043,-470.567646,0.00019995,2]
[360132933,1746562245052,-286.412312,0.00019995,2]
[360132935,1746562245062,-286.412312,0.00019995,2]
[360132937,1746562245070,-253.924162,0.00019995,2]
[360132939,1746562245081,-253.924162,0.00019995,2]
[360132941,1746562245090,-153.532226,0.00019995,2]
[360132943,1746562245099,-153.532226,0.00019995,2]
[360132945,1746562245109,-151.0,0.00019995,2]
[360132947,1746562245120,-151.0,0.00019995,2]
[360132949,1746562245129,-151.0,0.00019995,2]
[360132951,1746562245139,-395.160617,0.00019995,2]
[360132953,1746562245148,-395.160617,0.00019995,2]
[360132955,1746562245157,-151.0,0.00019995,2]
[360132957,1746562245167,-209.743536,0.00019995,2]
[360132959,1746562245176,-209.743536,0.00019995,2]
[360132961,1746562245185,-151.0,0.00019995,2]
[360132963,1746562245194,-151.0,0.00019995,2]
[360132965,1746562245203,-757.588234,0.00019995,2]
[360132967,1746562245213,-757.588234,0.00019995,2]
[360132969,1746562245222,-731.674783,0.00019995,2]
[360132971,1746562245231,-731.674783,0.00019995,2]
[360132973,1746562245240,-151.0,0.00019995,2]
[360132974,1746562245249,-295.46317,0.00019995,2]
[360132976,1746562245258,-187.053762,0.00019995,2]
[360132978,1746562245268,-187.053762,0.00019995,2]
[360132980,1746562245277,-267.243813,0.00019995,2]
[360132982,1746562245286,-267.243813,0.00019995,2]
[360132984,1746562245295,-401.662662,0.00019995,2]
[360132986,1746562245304,-401.662662,0.00019995,2]
[360132988,1746562245313,-151.0,0.00019995,2]
[360132990,1746562245322,-325.775287,0.00019995,2]
[360132992,1746562245331,-193.479543,0.00019995,2]
[360132994,1746562245341,-151.0,0.00019995,2]
[360132996,1746562245351,-325.775287,0.00019995,2]
[360132998,1746562245359,-193.479543,0.00019995,2]
[360133000,1746562245368,-647.7,0.00019995,2]
[360133002,1746562245378,-21519.66,0.00019995,2]
[360133004,1746562245387,-151.0,0.00019995,2]
[360133007,1746562245396,-450.0,0.00019995,2]
[360133009,1746562245406,-450.0,0.00019995,2]
[360133011,1746562245416,-634.9,0.00019995,2]
[360133013,1746562245425,-1304.22,0.00019995,2]
[360133015,1746562245434,-21378.88,0.00019995,2]
[360133016,1746562245445,-5121.91,0.00019995,2]
[360133018,1746562245455,-151.0,0.00019995,2]
[360133020,1746562245464,-151.0,0.00019995,2]
[360133022,1746562245474,-450.0,0.00019995,2]
[360133024,1746562245482,-151.0,0.00019995,2]
[360133026,1746562245492,-673.89,0.00019995,2]
[360133028,1746562245501,-456.59,0.00019995,2]
[360133030,1746562245511,-3047.16,0.00019995,2]
[360133032,1746562245520,-1134.64,0.00019995,2]
[360133034,1746562245530,-674.23,0.00019995,2]
[360133036,1746562245539,-450.0,0.00019995,2]
[360133038,1746562245548,-4242.74,0.00019995,2]
[360133040,1746562245558,-450.0,0.00019995,2]
[360133042,1746562245566,-450.0,0.00019995,2]
[360133044,1746562245575,-450.0,0.00019995,2]
[360133046,1746562245584,-450.0,0.00019995,2]
[360133048,1746562245593,-450.0,0.00019995,2]
[360133050,1746562245603,-1078.45,0.00019995,2]
[360133052,1746562245612,-450.0,0.00019995,2]
[360133054,1746562245621,-1328.68,0.00019995,2]
[360133056,1746562245630,-738.48,0.00019995,2]
[360133058,1746562245640,-450.0,0.00019995,2]
[360133060,1746562245649,-500.0,0.00019995,2]
[360133062,1746562245658,-151.0,0.00019996,2]
[360133064,1746562245668,-151.0,0.00019996,2]
[360133066,1746562245676,-151.0,0.00019996,2]
[360133068,1746562245685,-151.0,0.00019996,2]
[360133069,1746562245694,-151.0,0.00019996,2]
[360133071,1746562245703,-151.0,0.00019996,2]
[360133073,1746562245713,-151.0,0.00019996,2]
[360133075,1746562245722,-151.0,0.00019996,2]
[360133077,1746562245731,-151.0,0.00019996,2]
[360133079,1746562245741,-151.0,0.00019996,2]
[360133081,1746562245751,-179.655252,0.00019996,2]
[360133083,1746562245759,-202.398437,0.00019996,2]
[360133085,1746562245768,-202.398437,0.00019996,2]
[360133087,1746562245778,-151.0,0.00019996,2]
[360133089,1746562245787,-228.542599,0.00019996,2]
[360133091,1746562245796,-228.542599,0.00019996,2]
[360133093,1746562245805,-499.8982,0.00019996,2]
[360133095,1746562245814,-499.8982,0.00019996,2]
[360133097,1746562245823,-151.0,0.00019996,2]
[360133099,1746562245833,-266.032829,0.00019996,2]
[360133101,1746562245842,-266.032829,0.00019996,2]
[360133103,1746562245851,-286.412312,0.00019996,2]
[360133105,1746562245860,-286.412312,0.00019996,2]
[360133107,1746562245868,-153.532226,0.00019996,2]
[360133109,1746562245877,-153.532226,0.00019996,2]
[360133111,1746562245887,-151.0,0.00019996,2]
[360133113,1746562245896,-151.0,0.00019996,2]
[360133115,1746562245905,-318.082385,0.00019996,2]
[360133117,1746562245915,-318.082385,0.00019996,2]
[360133119,1746562245924,-826.025313,0.00019996,2]
[360133121,1746562245933,-826.025313,0.00019996,2]
[360133123,1746562245942,-151.0,0.00019996,2]
[360133125,1746562245953,-395.160617,0.00019996,2]
[360133127,1746562245963,-151.0,0.00019996,2]
[360133129,1746562245972,-395.160617,0.00019996,2]
[360133131,1746562245980,-209.743536,0.00019996,2]
[360133133,1746562245990,-209.743536,0.00019996,2]
[360133135,1746562245999,-151.0,0.00019996,2]
[360133137,1746562246008,-151.0,0.00019996,2]
[360133139,1746562246017,-151.0,0.00019996,2]
[360133141,1746562246026,-214.84011,0.00019996,2]
[360133143,1746562246035,-731.674783,0.00019996,2]
[360133144,1746562246044,-151.0,0.00019996,2]
[360133145,1746562246052,-731.674783,0.00019996,2]
[360133146,1746562246061,-180.288066,0.00019996,2]
[360133147,1746562246069,-180.288066,0.00019996,2]
[360133148,1746562246081,-151.0,0.00019996,2]
[360133150,1746562246090,-450.0,0.00019996,2]
[360133152,1746562246099,-159.399757,0.00019996,2]
[360133154,1746562246109,-159.399757,0.00019996,2]
[360133156,1746562246119,-922.810266,0.00019996,2]
[360133158,1746562246128,-669.008386,0.00019996,2]
[360133160,1746562246137,-922.810266,0.00019996,2]
[360133162,1746562246146,-669.008386,0.00019996,2]
[360133164,1746562246157,-151.0,0.00019996,2]
[360133166,1746562246166,-338.29965988,0.00019996,2]
[360133168,1746562246175,-151.0,0.00019996,2]
[360133170,1746562246184,-151.0,0.00019996,2]
[360133172,1746562246193,-151.0,0.00019996,2]
[360133174,1746562246205,-505.16,0.00019996,2]
[360133176,1746562246215,-450.0,0.00019996,2]
[360133178,1746562246225,-151.0,0.00019996,2]
[360133180,1746562246234,-151.0,0.00019996,2]
[360133182,1746562246243,-461.02183,0.00019996,2]
[360133184,1746562246252,-461.02183,0.00019996,2]
[360133186,1746562246261,-180.434936,0.00019996,2]
[360133188,1746562246271,-180.434936,0.00019996,2]
[360133190,1746562246281,-647.7,0.00019996,2]
[360133192,1746562246290,-21519.66,0.00019996,2]
[360133194,1746562246300,-257.56974328,0.00019996,2]
[360133196,1746562246309,-450.0,0.00019996,2]
[360133198,1746562246319,-634.9,0.00019996,2]
[360133200,1746562246328,-1304.22,0.00019996,2]
[360133202,1746562246338,-151.0,0.00019996,2]
[360133204,1746562246347,-16384.44085438,0.00019996,2]
[360133228,1746562246564,-1659.72149004,0.00019996,2]
[360133231,1746562246580,-3334.71765558,0.00019996,2]
[360133233,1746562246590,-5121.91,0.00019996,2]
[360133235,1746562246600,-450.0,0.00019996,2]
[360133237,1746562246609,-673.89,0.00019996,2]
[360133239,1746562246619,-456.59,0.00019996,2]
[360133241,1746562246628,-3047.16,0.00019996,2]
[360133243,1746562246637,-151.0,0.00019996,2]
[360133245,1746562246646,-500.0,0.00019996,2]
[360133247,1746562246656,-1134.64,0.00019996,2]
[360133249,1746562246666,-166.87627705,0.00019996,2]
[360133251,1746562246678,-283.12372295,0.00019996,2]
[360133253,1746562246687,-349.46399917,0.00019996,2]
[360133255,1746562246699,-179.361716,0.00019996,2]
[360133257,1746562246709,-674.23,0.00019996,2]
[360133259,1746562246718,-292.51595854,0.00019996,2]
[360133267,1746562246781,-5373.35551073,0.00019831,2]
[360133269,1746562246792,-450.0,0.00019897,2]
[360133271,1746562246801,-205.0335619,0.00019983,2]
[360133273,1746562246811,-157.48404146,0.00019996,2]
[360133275,1746562246821,-4242.74,0.00019996,2]
[360133277,1746562246831,-450.0,0.00019996,2]
[360133279,1746562246842,-453.91,0.00019996,2]
[360133281,1746562246851,-450.0,0.00019996,2]
[360133283,1746562246861,-450.0,0.00019996,2]
[360133285,1746562246871,-450.0,0.00019996,2]
[360133287,1746562246880,-450.0,0.00019996,2]
[360133289,1746562246891,-450.0,0.00019996,2]
[360133291,1746562246900,-450.0,0.00019996,2]
[360133293,1746562246910,-253.326489,0.00019996,2]
[360133295,1746562246920,-253.326489,0.00019996,2]
[360133297,1746562246930,-151.0,0.00019996,2]
[360133300,1746562246940,-1078.45,0.00019996,2]
[360133301,1746562246950,-151.0,0.00019996,2]
[360133303,1746562246959,-450.0,0.00019996,2]
[360133305,1746562246969,-261.026541,0.00019996,2]
[360133307,1746562246978,-1328.68,0.00019996,2]
[360133310,1746562246988,-151.0,0.00019996,2]
[360133312,1746562246998,-243.149834,0.00019996,2]
[360133314,1746562247007,-738.48,0.00019996,2]
[360133316,1746562247016,-151.0,0.00019996,2]
[360133317,1746562247026,-450.0,0.00019996,2]
[360133320,1746562247036,-151.0,0.00019996,2]
[360133322,1746562247045,-151.0,0.00019996,2]
[360133324,1746562247054,-450.0,0.00019996,2]
[360133326,1746562247064,-573.57399679,0.00019996,2]
[360133328,1746562247073,-500.0,0.00019996,2]
[360133330,1746562247088,-500.0,0.00019996,2]
[360133332,1746562247098,-500.0,0.00019996,2]
[360133334,1746562247107,-151.0,0.00019997,2]
[360133335,1746562247117,-151.0,0.00019997,2]
[360133337,1746562247127,-151.0,0.00019997,2]
[360133339,1746562247137,-151.0,0.00019997,2]
[360133341,1746562247146,-151.0,0.00019997,2]
[360133343,1746562247155,-151.0,0.00019997,2]
[360133345,1746562247165,-251.539171,0.00019997,2]
[360133347,1746562247176,-500.0,0.00019997,2]
[360133349,1746562247185,-500.0,0.00019997,2]
[360133351,1746562247195,-151.0,0.00019997,2]
[360133353,1746562247205,-337.95812922,0.00019997,2]
[360133355,1746562247215,-151.0,0.00019997,2]
[360133357,1746562247224,-167.592517,0.00019997,2]
[360133359,1746562247234,-151.0,0.00019997,2]
[360133361,1746562247244,-151.0,0.00019997,2]
[360133363,1746562247254,-267.804868,0.00019997,2]
[360133365,1746562247264,-151.0,0.00019997,2]
[360133367,1746562247273,-176.180024,0.00019997,2]
[360133369,1746562247283,-151.0,0.00019997,2]
[360133371,1746562247292,-151.0,0.00019997,2]
[360133373,1746562247302,-151.0,0.00019997,2]
[360133375,1746562247311,-151.0,0.00019997,2]
[360133377,1746562247321,-151.0,0.00019997,2]
[360133379,1746562247331,-151.0,0.00019997,2]
[360133381,1746562247341,-151.0,0.00019997,2]
[360133383,1746562247350,-470.567646,0.00019997,2]
[360133385,1746562247360,-470.567646,0.00019997,2]
[360133387,1746562247369,-470.567646,0.00019997,2]
[360133389,1746562247379,-470.567646,0.00019997,2]
[360133391,1746562247388,-151.0,0.00019997,2]
[360133393,1746562247398,-151.0,0.00019997,2]
[360133395,1746562247408,-151.0,0.00019997,2]
[360133397,1746562247418,-252.676023,0.00019997,2]
[360133399,1746562247427,-179.655252,0.00019997,2]
[360133401,1746562247437,-179.655252,0.00019997,2]
[360133403,1746562247446,-179.655252,0.00019997,2]
[360133405,1746562247456,-202.398437,0.00019997,2]
[360133407,1746562247466,-202.398437,0.00019997,2]
[360133409,1746562247476,-202.398437,0.00019997,2]
[360133411,1746562247486,-202.398437,0.00019997,2]
[360133414,1746562247496,-151.0,0.00019997,2]
[360133416,1746562247506,-151.0,0.00019997,2]
[360133418,1746562247518,-228.542599,0.00019997,2]
[360133420,1746562247528,-228.542599,0.00019997,2]
[360133421,1746562247538,-228.542599,0.00019997,2]
[360133424,1746562247547,-228.542599,0.00019997,2]
[360133426,1746562247557,-499.8982,0.00019997,2]
[360133427,1746562247567,-499.8982,0.00019997,2]
[360133430,1746562247577,-499.8982,0.00019997,2]
[360133432,1746562247587,-499.8982,0.00019997,2]
[360133434,1746562247597,-151.0,0.00019997,2]
[360133436,1746562247607,-694.452628,0.00019997,2]
[360133437,1746562247616,-266.032829,0.00019997,2]
[360133439,1746562247625,-266.032829,0.00019997,2]
[360133441,1746562247635,-266.032829,0.00019997,2]
[360133443,1746562247644,-266.032829,0.00019997,2]
[360133445,1746562247654,-286.412312,0.00019997,2]
[360133447,1746562247663,-286.412312,0.00019997,2]
[360133449,1746562247673,-253.924162,0.00019997,2]
[360133451,1746562247684,-253.924162,0.00019997,2]
[360133453,1746562247694,-253.924162,0.00019997,2]
[360133455,1746562247703,-253.924162,0.00019997,2]
[360133457,1746562247712,-150.0,0.00019997,2]
[360133459,1746562247722,-167.0,0.00019997,2]
[360133461,1746562247732,-253.434,0.00019997,2]
[360133463,1746562247742,-245.67,0.00019997,2]
[360133465,1746562247751,-182.758,0.00019997,2]
[360133467,1746562247760,-260.1,0.00019997,2]
[360133469,1746562247771,-203.026,0.00019997,2]
[360133471,1746562247780,-151.0,0.00019997,2]
[360133473,1746562247790,-151.0,0.00019997,2]
[360133475,1746562247799,-318.082385,0.00019997,2]
[360133477,1746562247808,-318.082385,0.00019997,2]
[360133479,1746562247817,-151.0,0.00019997,2]
[360133481,1746562247828,-151.0,0.00019997,2]
[360133483,1746562247838,-151.0,0.00019997,2]
[360133485,1746562247848,-151.0,0.00019997,2]
[360133487,1746562247857,-757.588234,0.00019997,2]
[360133489,1746562247867,-757.588234,0.00019997,2]
[360133491,1746562247877,-163.83793086,0.00019997,2]
[360133493,1746562247893,-286.16206914,0.00019997,2]
[360133495,1746562247903,-450.0,0.00019997,2]
[360133497,1746562247913,-1429.157,0.00019997,2]
[360133499,1746562247922,-926.0,0.00019997,2]
[360133501,1746562247932,-505.16,0.00019997,2]
[360133503,1746562247941,-505.16,0.00019997,2]
[360133505,1746562247951,-450.0,0.00019997,2]
[360133507,1746562247961,-450.0,0.00019997,2]
[360133509,1746562247970,-151.0,0.00019997,2]
[360133511,1746562247980,-187.053762,0.00019997,2]
[360133513,1746562247989,-187.053762,0.00019997,2]
[360133515,1746562247999,-267.243813,0.00019997,2]
[360133517,1746562248009,-267.243813,0.00019997,2]
[360133520,1746562248018,-215.477618,0.00019997,2]
[360133521,1746562248028,-215.477618,0.00019997,2]
[360133524,1746562248038,-300.0,0.00019997,2]
[360133526,1746562248048,-401.662662,0.00019997,2]
[360133528,1746562248058,-401.662662,0.00019997,2]
[360133530,1746562248067,-267.87206048,0.00019997,2]
[360133531,1746562248078,-319.37473416,0.00019997,2]
[360133534,1746562248091,-325.775287,0.00019997,2]
[360133536,1746562248101,-193.479543,0.00019997,2]
[360133538,1746562248111,-162.338423,0.00019997,2]
[360133540,1746562248122,-325.775287,0.00019997,2]
[360133542,1746562248132,-193.479543,0.00019997,2]
[360133544,1746562248141,-647.7,0.00019997,2]
[360133546,1746562248153,-8880.81507407,0.00019997,2]
[360133548,1746562248165,-844.76036554,0.00019997,2]
[360133553,1746562248206,-11794.08456039,0.00019997,2]
[360133556,1746562248217,-151.0,0.00019997,2]
[360133558,1746562248227,-562.44756717,0.00019997,2]
[360133560,1746562248237,-634.9,0.00019997,2]
[360133562,1746562248247,-329.476466,0.00019997,2]
[360133579,1746562248413,-1230.74608027,0.00019997,2]
[360133581,1746562248425,-73.47391973,0.00019997,2]
[360133583,1746562248436,-329.476466,0.00019997,2]
[360133585,1746562248445,-43.23861132,0.00019997,2]
[360133599,1746562248577,-4798.56036637,0.00019842,2]
[360133608,1746562248659,-574.79514436,0.00019842,2]
[360133611,1746562248668,-536.56368235,0.00019937,2]
[360133613,1746562248680,-5396.43631765,0.00019937,2]
[360133615,1746562248689,-21335.64138868,0.00019997,2]
[360133617,1746562248699,-5121.91,0.00019997,2]
[360133619,1746562248709,-151.0,0.00019997,2]
[360133621,1746562248719,-218.776049,0.00019997,2]
[360133623,1746562248729,-450.0,0.00019997,2]
[360133625,1746562248738,-151.0,0.00019997,2]
[360133626,1746562248747,-673.89,0.00019997,2]
[360133627,1746562248757,-456.59,0.00019997,2]
[360133628,1746562248766,-3047.16,0.00019997,2]
[360133629,1746562248776,-500.0,0.00019997,2]
[360133630,1746562248785,-500.0,0.00019997,2]
[360133631,1746562248795,-1134.64,0.00019997,2]
[360133632,1746562248805,-450.0,0.00019997,2]
[360133633,1746562248814,-450.0,0.00019997,2]
[360133634,1746562248823,-674.23,0.00019997,2]
[360133635,1746562248832,-240.67,0.00019997,2]
[360133636,1746562248842,-4242.74,0.00019997,2]
[360133637,1746562248851,-450.0,0.00019997,2]
[360133638,1746562248861,-450.0,0.00019997,2]
[360133639,1746562248870,-450.0,0.00019997,2]
[360133641,1746562248879,-450.0,0.00019997,2]
[360133643,1746562248888,-450.0,0.00019997,2]
[360133645,1746562248898,-450.0,0.00019997,2]
[360133647,1746562248907,-450.0,0.00019997,2]
[360133648,1746562248916,-450.0,0.00019997,2]
[360133651,1746562248927,-450.0,0.00019997,2]
[360133652,1746562248936,-450.0,0.00019997,2]
[360133654,1746562248946,-450.0,0.00019997,2]
[360133656,1746562248955,-1078.45,0.00019997,2]
[360133658,1746562248964,-450.0,0.00019997,2]
[360133660,1746562248973,-450.0,0.00019997,2]
[360133662,1746562248983,-450.0,0.00019997,2]
[360133664,1746562248992,-1328.68,0.00019997,2]
[360133667,1746562249002,-738.48,0.00019997,2]
[360133669,1746562249012,-450.0,0.00019997,2]
[360133671,1746562249022,-450.0,0.00019997,2]
[360133673,1746562249031,-450.0,0.00019997,2]
[360133675,1746562249041,-450.0,0.00019997,2]
[360133677,1746562249050,-450.0,0.00019997,2]
[360133679,1746562249060,-500.0,0.00019997,2]
[360133681,1746562249069,-500.0,0.00019997,2]
[360133683,1746562249082,-535.1003832,0.00019998,2]
[360133685,1746562249091,-500.0,0.00019998,2]
[360133687,1746562249100,-500.0,0.00019998,2]
[360133689,1746562249110,-151.0,0.00019998,2]
[360133691,1746562249119,-151.0,0.00019998,2]
[360133693,1746562249129,-151.0,0.00019998,2]
[360133695,1746562249138,-151.0,0.00019998,2]
[360133697,1746562249147,-151.0,0.00019998,2]
[360133699,1746562249157,-151.0,0.00019998,2]
[360133700,1746562249166,-151.0,0.00019998,2]
[360133702,1746562249175,-151.0,0.00019998,2]
[360133705,1746562249185,-275.855135,0.00019998,2]
[360133707,1746562249195,-500.0,0.00019998,2]
[360133708,1746562249204,-151.0,0.00019998,2]
[360133711,1746562249213,-151.0,0.00019998,2]
[360133713,1746562249223,-151.0,0.00019998,2]
[360133715,1746562249232,-151.0,0.00019998,2]
[360133716,1746562249241,-151.0,0.00019998,2]
[360133718,1746562249251,-151.0,0.00019998,2]
[360133720,1746562249260,-151.0,0.00019998,2]
[360133722,1746562249269,-151.0,0.00019998,2]
[360133724,1746562249278,-151.0,0.00019998,2]
[360133727,1746562249288,-151.0,0.00019998,2]
[360133729,1746562249298,-166.301836,0.00019998,2]
[360133731,1746562249307,-470.567646,0.00019998,2]
[360133733,1746562249316,-470.567646,0.00019998,2]
[360133734,1746562249325,-470.567646,0.00019998,2]
[360133736,1746562249335,-470.567646,0.00019998,2]
[360133738,1746562249344,-470.567646,0.00019998,2]
[360133740,1746562249354,-470.567646,0.00019998,2]
[360133742,1746562249363,-151.0,0.00019998,2]
[360133745,1746562249373,-179.655252,0.00019998,2]
[360133747,1746562249382,-179.655252,0.00019998,2]
[360133748,1746562249391,-202.398437,0.00019998,2]
[360133750,1746562249401,-202.398437,0.00019998,2]